Cogmind - Beta 9.4 @@@ ROGUE MODE // 2020.01.26 @ 12:19:27 Player: Pimski Result: Destroyed by as-95626 with Assembled Blade Performance ------------- Evolutions (0) 0 Regions Visited (2) 400 Robots Destroyed (14) 70 Value Destroyed (168) 168 Prototype IDs (0) 0 Alien Tech Used (0) 0 Bonus (0) 0 TOTAL SCORE: 638 Bonus ------- None Cogmind --------- Core Integrity 0/250 Matter 260/300 Energy 100/100 System Corruption 0% Temperature Cool (0) Movement Treading (160) Location -10/Mines Parts ------- > --- POWER (1) -------- (None) > --- PROPULSION (2) --- Light Treads > --- UTILITY (2) ------ (None) > --- WEAPON (2) ------- Assault Rifle > --- INVENTORY (4) ---- Light Armor Plating Light Armor Plating Light Armor Plating Assault Rifle Peak State ------------ > --- POWER ------------ Light Ion Engine > --- PROPULSION ------- Light Treads Light Treads > --- UTILITY ---------- Small Storage Unit Small Storage Unit > --- WEAPON ----------- Light Assault Rifle Rocket Launcher > --- INVENTORY -------- Light Nuclear Core Compact Wheel Light Armor Plating Light Armor Plating Light Armor Plating Small Laser Assault Rifle Assault Rifle [Rating: 9] Favorites ----------- Power Light Ion Engine Engine Light Ion Engine Propulsion Light Treads Treads Light Treads Leg Aluminum Leg Wheel Compact Wheel Utility Small Storage Unit Storage Small Storage Unit Weapon Light Assault Rifle Ballistic Gun Light Assault Rifle Launcher Rocket Launcher Build | -11 -10 -10 ------- Run | Scr Mat Min Slots Evolved . | . . . Power . | . . . Propulsion . | . . . Utility . | . . . Weapon . | . . . Parts Attached 10 | 1 2 7 Power 1 | . . 1 Engine 1 | . . 1 Core . | . . . Reactor . | . . . Propulsion 4 | . 2 2 Treads 3 | . 2 1 Leg . | . . . Wheel 1 | . . 1 Hover . | . . . Flight . | . . . Utility 1 | 1 . . Device . | . . . Storage 1 | 1 . . Processor . | . . . Hackware . | . . . Protection . | . . . Artifact . | . . . Weapon 4 | . . 4 Energy Gun . | . . . Energy Cannon . | . . . Ballistic Gun 2 | . . 2 Ballistic Cannon . | . . . Launcher 2 | . . 2 Special Weapon . | . . . Impact Weapon . | . . . Slashing Weapon . | . . . Piercing Weapon . | . . . Special Melee Weapon . | . . . Unidentified Prototypes . | . . . Parts Lost 4 | . . 4 Power 1 | . . 1 Propulsion 1 | . . 1 Utility . | . . . Weapon 2 | . . 2 Highest Loss Streak 4 | . . 4 Average Slot Usage (%) 98 | . 100 97 Engine 13 | . 14 13 Treads 25 | . 22 26 Leg 1 | . 5 . Storage 27 | . 28 26 Ballistic Gun 27 | . 28 27 Naked Turns . | . . . Heaviest Build 14 | 14 14 14 Greatest Support 40 | 20 40 40 Greatest Overweight (x) . | . . . Average Overweight (x) . | . . . Largest Inventory Capacity 8 | 8 8 8 Average Capacity 7 | 6 8 7 Most Carried 8 | 6 8 8 Average Carried 7 | 6 6 7 Final Capacity 8 | 8 8 4 Final Carried 8 | 6 8 4 Class Distribution -------------------- 100% | Mutant Dominant Class ---------------- Mutant | -10/Materials Mutant | -10/Mines Resources | -11 -10 -10 ----------- Run | Scr Mat Min Matter Collected 347 | 238 68 41 Remotely . | . . . Salvage Created 236 | 67 139 30 Parts 20 | 3 9 8 Haulers Intercepted . | . . . Recyclers Shooed . | . . . Parts Field Recycled . | . . . Retrieved Matter . | . . . Parts Self-Destructed . | . . . Prevented . | . . . Kills | -11 -10 -10 ------- Run | Scr Mat Min Combat Hostiles Destroyed 12 | . 3 9 Guns 3 | . 3 . AOE 9 | . . 9 Classes Destroyed 5 | 1 1 3 Tunneler 1 | . . 1 Recycler 1 | 1 . . Swarmer 3 | . . 3 Grunt 3 | . 3 . Assembled 6 | . . 6 Best Kill Streak 7 | 1 2 7 Combat Bots Only 6 | . 2 6 Max Kills in Single Turn 3 | 1 1 3 Gunslinging . | . . . Exploded 3 | . . 3 Melee . | . . . Uniques/NPCs Destroyed . | . . . Combat | -11 -10 -10 -------- Run | Scr Mat Min Damage Taken 850 | . 172 678 Core 256 | . 28 228 Absorbed by Shields . | . . . Core Remaining (%) 100 | 100 . . Volleys Fired 23 | 7 12 4 Largest 2 | 2 2 1 Hottest 40 | 40 40 33 Shots Fired 42 | 14 24 4 Gun 38 | 14 24 . Cannon . | . . . Launcher 4 | . . 4 Special . | . . . Kinetic 38 | 14 24 . Thermal . | . . . Explosive 4 | . . 4 Electromagnetic . | . . . Robot Hit Streak 16 | 3 16 6 Robot Miss Streak 2 | 2 1 . Penetration Max . | . . . Secondary Targets . | . . . Shots Hit Robots 33 | 9 20 4 Core Hits 33 | 2 9 22 Critical Hits . | . . . Critical Kills . | . . . Critical Parts Destroyed . | . . . Melee Attacks . | . . . Impact . | . . . Slashing . | . . . Piercing . | . . . Sneak Attacks . | . . . Combat Hostiles . | . . . Follow-up Attacks . | . . . Damage Inflicted 958 | 90 222 646 Guns 312 | 90 222 . Cannons . | . . . Explosions 643 | . . 643 Melee . | . . . Ramming 3 | . . 3 Kinetic 312 | 90 222 . Thermal . | . . . Explosive 643 | . . 643 Electromagnetic . | . . . Impact . | . . . Slashing . | . . . Piercing . | . . . Highest Corruption . | . . . Average Corruption . | . . . Corruption Purged . | . . . Overload Shots . | . . . Overflow Damage 9 | . . 9 Projectiles . | . . . Explosions 9 | . . 9 Melee . | . . . Knockbacks . | . . . Impact . | . . . Kinetic . | . . . Secondary . | . . . Self-Inflicted Damage 25 | . . 25 Shots 1 | . . 1 Rammed 4 | . . 4 Targets Rammed 4 | . . 4 Kicked . | . . . Crushed . | . . . Highest Temperature 18 | . 18 . Average Temperature 8 | . 8 . Received Heat Transfer 96 | . 96 . Siege Activations . | . . . Robots Corrupted . | . . . Combat Hostiles . | . . . Parts Fried . | . . . Impact Corruptions . | . . . Robots Melted . | . . . Combat Hostiles . | . . . Parts Melted . | . . . Heat Transferred . | . . . Parts Sabotaged . | . . . Parts Stolen . | . . . Parts Stripped . | . . . Power Chain Reactions . | . . . Missiles Intercepted . | . . . Alert | -11 -10 -10 ------- Run | Scr Mat Min Peak Influence 143 | 5 99 143 Average Influence 98 | 2 40 133 Maximum Alert Level . | . . . Low Security (%) 100 | 100 100 100 Level 1 . | . . . Level 2 . | . . . Level 3 . | . . . Level 4 . | . . . Level 5 . | . . . High Security . | . . . Max Security . | . . . Squads Dispatched 1 | . 1 . Investigation 1 | . 1 . Extermination . | . . . Reinforcement . | . . . Assault . | . . . Garrison . | . . . Intercept . | . . . Construction Impeded . | . . . Haulers Reinforced . | . . . Stealth | -11 -10 -10 --------- Run | Scr Mat Min Distress Signals . | . . . Communications Jammed . | . . . Distress Signals . | . . . Times Spotted 28 | . 5 23 Peak Tracking Total 16 | . 2 16 Tactical Retreats 2 | . 1 1 Traps | -11 -10 -10 ------- Run | Scr Mat Min Traps Triggered . | . . . Indirectly . | . . . Trap Hack Attempts . | . . . Triggered . | . . . Disarmed . | . . . Reprogrammed . | . . . Reused . | . . . Traps Extracted . | . . . Installed . | . . . Triggered . | . . . Machines | -11 -10 -10 ---------- Run | Scr Mat Min Machines Disabled 1 | . . 1 Max in Single Turn 1 | . . 1 Machines Sabotaged . | . . . Garrisons Compromised . | . . . Overloaded Fab Kills . | . . . Fab Network Shutdowns . | . . . Hacking | -11 -10 -10 --------- Run | Scr Mat Min Machines Accessed 1 | . 1 . Terminals 1 | . 1 . Fabricators . | . . . Repair Stations . | . . . Recycling Units . | . . . Scanalyzers . | . . . Garrison Access . | . . . Total Hacks 4 | . 4 . Successful 2 | . 2 . Failed 1 | . 1 . Catastrophic . | . . . Database Lockouts 1 | . 1 . Manual 4 | . 4 . Terminals 4 | . 4 . Fabricators . | . . . Repair Stations . | . . . Recycling Units . | . . . Scanalyzers . | . . . Garrison Access . | . . . Terminal Hacks 1 | . 1 . Robot Analysis 1 | . 1 . Fabricator Hacks . | . . . Repair Station Hacks . | . . . Recycling Unit Hacks . | . . . Scanalyzer . | . . . Garrison Access Hacks . | . . . Unauthorized Hacks 3 | . 3 . Terminals 1 | . 1 . Botnet 1 | . 1 . Fabricators . | . . . Repair Stations . | . . . Recycling Units . | . . . Scanalyzers . | . . . Garrison Access . | . . . Data Cores Recovered . | . . . Used . | . . . Hacking Detections 1 | . 1 . Full Trace Events . | . . . Feedback Events . | . . . Feedback Blocked . | . . . Robot Schematics Acquired . | . . . Robots Built . | . . . Matter . | . . . Time . | . . . Total Robot Build Rating . | . . . Part Schematics Acquired . | . . . Parts Built . | . . . Matter . | . . . Time . | . . . Total Part Build Rating . | . . . Parts Repaired . | . . . Time . | . . . Parts Recycled . | . . . Recycled Matter . | . . . Retrieved Matter . | . . . Retrieved Components . | . . . Parts Scanalyzed . | . . . Part Schematics Acquired . | . . . Parts Damaged . | . . . Bothacking | -11 -10 -10 ------------ Run | Scr Mat Min Used RIF Installer . | . . . Robots Hacked . | . . . Non-combat . | . . . Combat . | . . . Robot Hacks Applied . | . . . Relay Couplers Released . | . . . Robots Rewired . | . . . Allies Hacked . | . . . Hacks Repelled . | . . . Allies | -11 -10 -10 -------- Run | Scr Mat Min Total Allies . | . . . Largest Group . | . . . Highest-Rated Group . | . . . Highest-Rated Ally . | . . . Total Orders . | . . . Ally Attacks . | . . . Total Damage . | . . . Kills . | . . . Allies Corrupted . | . . . Allies Melted . | . . . Intel | -11 -10 -10 ------- Run | Scr Mat Min Robot Analysis Total 1 | . 1 . Derelict Logs Recovered . | . . . Drone Launches . | . . . Drone Recoveries . | . . . Exploration | -11 -10 -10 ------------- Run | Scr Mat Min Turns Passed 633 | 36 189 408 Spaces Moved 355 | 13 89 253 Core 22 | . . 22 Treads 287 | . 58 229 Legs 44 | 13 31 . Wheels 2 | . . 2 Hover . | . . . Flight . | . . . Fastest Speed 50 | 120 120 50 Average Speed 147 | 120 146 149 Slowest Speed 160 | 120 160 160 Overloaded Moves . | . . . Propulsion Burnouts . | . . . Robots Hopped . | . . . Cave-ins Triggered . | . . . Exploration Rate (%) 25 | 3 23 49 Regions Visited 2 Branch Regions 1 Pre-discovered Areas . | . . . Known Exits Taken . | . . . Unknown Exits Taken 2 | 1 1 . Scrap Searched 2 | . . 2 Spaces Dug . | . . . Terrain Destroyed 41 | . . 41 Melee . | . . . Projectile . | . . . AOE 41 | . . 41 Actions | -11 -10 -10 --------- Run | Scr Mat Min Total 426 | 20 128 278 Wait 16 | . 14 2 Move 353 | 12 88 253 Hop . | . . . Pick Up 8 | . 7 1 Fast Attach 1 | 1 . . Attach 2 | . . 2 Detach . | . . . Swap 7 | . 2 5 Drop 12 | . 5 7 Fire 23 | 7 12 4 Melee . | . . . Ram . | . . . Kick . | . . . Crush 4 | . . 4 Escape Stasis . | . . . Rewire . | . . . Trap . | . . . Miscellaneous . | . . . Route ------- -11/Scrapyard -10/Materials -10/Mines (discovered 1 exit: [*Mat]) History --------- Turn | Location | Event 21 | -11/Scrapyard | Discovered new exit (range 3) 37 | -11/Scrapyard | Entered Materials 180 | -10/Materials | Discovered new exit (range 11) 205 | -10/Materials | Central database locked down 226 | -10/Materials | Entered Mines 305 | -10/Mines | Build established: Mutant 320 | -10/Mines | A weapon hastily lodged in a ceiling crevice suddenly fell to the ground 347 | -10/Mines | Discovered new exit (range 14) 594 | -10/Mines | Assembled infested the area 634 | -10/Mines | Core integrity fell below 50% 634 | -10/Mines | Core integrity fell below 20% 634 | -10/Mines | Destroyed by as-95626 with Assembled Blade Last Messages --------------- 00608_ as-19310 destroyed. 00610_ as-23552 destroyed. 00610_ as-08801 destroyed. 00612_ as-31109 destroyed. 00612_ as-63829 destroyed. 00612_ T-07 Excavator destroyed. 00613_ Rocket Launcher destroyed. 00613_ Lgt. Ion Engine destroyed. 00614_ Dropped Com. Wheel. 00615_ as-07003 sneak attacks. 00615_ Dropped Lgt. Nuclear Core. 00616_ as-72747 destroyed. 00616_ Lgt. Treads destroyed. 00617_ Dropped Lgt. Assault Rifle. 00617_ Dropped Sml. Storage Unit. 00618_ U-05 Engineer destroyed. 00618_ Dropped Sml. Storage Unit. 00629_ Slammed into as-95626. 00632_ Lgt. Assault Rifle destroyed. 00633_ Slammed into as-95626. Map ----- +----------------------------------------------------+ | | | ???????????????????????????????????????? | | ???????????????????????????????????????? | | ?????????????????????????####?????####?? | | ????????????????????????## ##???# ##? | | ????????????????????????# #### #? | | ????????????????????????# #? | | ????????????????????????# #?? | | ???????####????????????## ####?? | | ??????## ##????######## ## #????? | | ??##### #????# *%! ### #????? | | ??# ##???# = #?# #????# | | ??# "" #???# ##### #?# ###### | | ??# "" ##???# #???# ##?# | | ??# "" [ ####### #???# #??# | | ??# !## #???# #??## ###### | | ??# ####%## #???# #??## #????# | | ??# #??# ## #???# #?## ##???# | | ??#########?## ## #???# #?# #???# | | ????????????# #???# #?# #???# | | ????????????# #???## ##?# ##??# | | ????????????# ######????####??# ###? | | ????????????# #??????????????## ## | | ???????###### #?????????????## # | | ??????## #####????????## | | ????### a@a ##???????# | | ???## aaa ##?????# ## | | ??## aaaa a ##????# #?## | | ??# a ### ##???## #??## # | | ??# a ##?#### ##???####???# ## | | ??# """ #?????## #??????????# ## | | ??# """ #??????# #????????## # | | ??# """ ##??????# #????????## # | | ??## ##???????# #?????????# | | ???### ##???###??# #?????????# | | ?????## ### ##?## ####?????????# | | ????### * #???###????????????## | | ????# [=! #??????????????????## | | ???# ! #??????????????????? | | ???# ## %##??????????????????? | | ???## #?? %% #?????????????????? | | ????###???#!= #????????????????? | | ??????????#=%!### #????????????????? | | ??????????# * #???# #????????????????? | | ????????????###????? #???????????????? | | ????????????????????? #???????????????? | | ??????????????????????##???????????????? | | ???????????????????????????????????????? | | ???????????????????????????????????????? | | ???????????????????????????????????????? | +----------------------------------------------------+ Best States ------------- Heat Dissipation 25 Energy Generation 10 Energy Capacity 125 Matter Stores 300 Matter Capacity 300 Sight Range 16 Terrain Scan Density 10 Evasion (%) 50 Recoil Reduction 2 Item Schematics ----------------- None Robot Schematics ------------------ None Fabricated ------------ Nothing Alien Tech Used ----------------- None Achievements -------------- None Challenges ------------ None Game ------ Seed MomentumPoweredTriangulator Manual? 0 Play Time 00:08:43 Cumulative 636.6 hours Start 2020.01.26 @ 12:13:24 End 2020.01.26 @ 12:19:27 Sessions 1 Manual Loads 0 Difficulty Rogue Special Mode None Game No. 414 Rogue 414 Adventurer 0 Explorer 0 Win Type - Total 102 Types 68/6/8/10/5/1/4 Lore% 97 Gallery% 95 Achievement% 80 Wizard Run 0 Options --------- ASCII 0 Keyboard 0 Movement Numpad Keybinds 0 Fullscreen 2 Font 18/SmallcapsGlow Map View 76x50 Tactical HUD 1 Map Filters NONE Filters NONE Steam 1 RUN: 0c0e6993-4e2d-470e-a45e-2fe0f4f39617